bitfinex-derivatives/quotes_SOLF0:USTF0_20250714
["timestamp","ask_amount","ask_price","bid_price","bid_amount"]
[1752456780687,3.36,161.97,161.91,3.01795076]
[1752456780887,3.36,162.01,161.94,6.67795076]
[1752456781092,3.36,161.99,161.92,3.01795076]
[1752456781294,6.1719,161.96,161.92,12.85095076]
[1752456781490,3.36,161.95,161.93,3.66]
[1752456781692,3.36,161.94,161.93,3.66]
[1752456781990,3.36,162.02,161.94,3.66]
[1752456782292,3.36,162.01,161.96,9.18864217]
[1752456782481,3.36,162.01,161.95,3.66]
[1752456782993,6.1707,161.99,161.95,9.8319]
[1752456783189,6.1707,161.99,161.96,3.66]
[1752456783494,3.36,161.98,161.96,3.66]
[1752456783794,6.1707,161.99,161.96,3.66]
[1752456784094,3.36,161.97,161.96,9.8314]
[1752456784301,3.36,161.97,161.96,3.66]
[1752456784490,3.36,161.96,161.94,6.67714217]
[1752456784691,3.36,161.97,161.95,3.66]
[1752456784994,3.36,161.96,161.95,3.66]
[1752456785490,3.36,162.01,161.94,3.01714217]
[1752456785688,3.36,161.99,161.93,3.66]
[1752456786295,3.01714217,161.98,161.91,9.8333]
[1752456786495,3.36,161.97,161.91,9.8333]
[1752456786886,6.1723,161.95,161.91,9.8333]
[1752456787086,3.36,161.94,161.91,9.8333]
[1752456787690,6.1725,161.94,161.91,9.8333]
[1752456787997,3.36,161.92,161.91,3.66]
[1752456788198,3.36,161.91,161.9,12.85084217]
[1752456788796,3.36,161.93,161.91,6.1734]
[1752456788995,3.36,161.92,161.91,9.8334]
[1752456789496,3.36,161.93,161.92,3.66]
[1752456790295,3.36,161.93,161.92,9.8331]
[1752456790487,3.36,161.93,161.92,6.1731]
[1752456790687,3.36,161.93,161.92,9.8331]
[1752456791589,3.36,162.03,161.93,3.66]
[1752456791795,3.36,162.0,161.93,3.66]
[1752456791996,6.1711,161.98,161.92,3.01714217]
[1752456792196,3.36,161.97,161.94,9.832]
[1752456792397,3.36,161.97,161.94,3.66]
[1752456792601,3.36,161.96,161.93,3.66]
[1752456792806,6.1711,161.98,161.94,3.66]
[1752456792997,3.36,161.95,161.94,9.8323]
[1752456793303,3.36,161.97,161.93,3.66]
[1752456793502,3.36,161.97,161.94,3.66]
[1752456794403,3.36,161.96,161.93,3.66]
[1752456795002,3.36,161.96,161.94,6.172]
[1752456795408,3.36,161.96,161.92,3.01714217]
[1752456795608,3.36,161.96,161.93,6.1726]
[1752456795907,3.36,161.96,161.92,6.67714217]
[1752456796307,6.172,161.95,161.92,12.84994217]
[1752456796607,3.36,161.93,161.92,12.84994217]
[1752456797497,3.36,161.96,161.94,6.1722]
[1752456798596,3.36,161.96,161.93,9.8326]
[1752456798597,3.36,161.95,161.93,9.8326]
[1752456798799,3.36,161.99,161.93,3.66]
[1752456798997,6.1709,161.98,161.93,3.66]
[1752456799202,5.0885538,162.0,161.95,3.66]
[1752456799511,3.36,161.97,161.96,3.66]
[1752456799805,3.36,161.95,161.94,3.66]
[1752456800714,3.36,161.95,161.94,9.8323]
[1752456801906,6.1706,161.99,161.95,3.66]
[1752456802110,3.36,161.96,161.95,3.66]
[1752456802912,3.36,161.96,161.95,9.8319]
[1752456803614,3.36,161.98,161.97,9.831]
[1752456805159,3.36,161.98,161.96,9.18854217]
[1752456805417,3.36,161.97,161.94,6.67714217]
[1752456805619,3.36,161.96,161.95,6.1718]
[1752456805819,3.36,161.96,161.93,3.66]
[1752456806319,3.36,161.95,161.94,6.172]
[1752456806821,3.36,161.95,161.94,9.832]
[1752456807010,6.1705,161.99,161.97,6.1711]
[1752456807414,6.1705,161.99,161.97,9.8311]
[1752456807615,3.36,161.98,161.97,3.66]
[1752456808018,3.36,162.0,161.97,3.66]
[1752456808218,3.36,161.99,161.98,3.66]
[1752456808414,3.36,161.99,161.96,6.67723677]
[1752456808617,3.36,161.98,161.96,3.01723677]
[1752456808919,3.36,161.98,161.96,9.18863677]
[1752456809113,6.1706,161.99,161.96,12.84863677]
[1752456809312,3.36,161.98,161.96,12.84863677]
[1752456809921,3.36,161.97,161.96,12.84863677]
[1752456810123,3.36,161.97,161.96,9.8314]
[1752456811116,3.36,161.97,161.96,6.1714]
[1752456811915,3.36,161.97,161.96,9.8314]
[1752456813124,3.36,162.03,161.97,6.1709]
[1752456813326,3.36,162.03,161.97,9.8309]
[1752456813628,3.36,162.03,161.97,3.66]
[1752456814028,6.1699,162.01,161.97,3.66]
[1752456814329,3.36,161.99,161.98,3.66]
[1752456814628,3.36,161.99,161.98,9.8306]
[1752456815128,3.36,162.0,161.98,3.66]
[1752456815526,3.36,162.01,162.0,3.66]
[1752456815824,533.1,162.09,162.01,3.66]
[1752456816029,533.1,162.09,162.03,3.66]
[1752456816225,3.36,162.09,162.05,3.66]
[1752456816425,179.34,162.1,162.06,3.66]
[1752456816629,3.36,162.07,162.06,3.66]
[1752456817325,5.16711798,162.08,162.07,3.66]
[1752456817525,8.52711798,162.08,162.06,3.01723677]
[1752456817726,3.36,162.07,162.06,6.67723677]
[1752456818027,3.36,162.09,162.07,9.8274]
[1752456818220,3.36,162.08,162.07,3.66]
[1752456819026,3.36,162.07,162.06,6.67723677]
[1752456819223,3.36,162.07,162.06,12.84503677]
[1752456820331,3.36,162.07,162.06,6.67723677]
[1752456820731,3.36,162.07,162.06,3.01723677]
[1752456822429,3.36,162.07,162.06,6.67723677]
[1752456823535,3.36,162.07,162.06,3.01723677]
[1752456823731,9.5274,162.07,162.06,3.01723677]
[1752456824132,3.01723677,162.11,162.04,3.01723677]
[1752456824334,3.36,162.1,162.04,3.01723677]
[1752456824933,6.168,162.06,162.04,3.01723677]
[1752456825135,3.36,162.05,162.0,3.014684]
[1752456825338,3.36,162.05,162.0,3.66]
[1752456825840,6.1691,162.03,162.0,3.66]
[1752456826036,3.36,162.01,162.0,3.66]
[1752456826232,3.36,162.07,162.0,3.66]
[1752456826437,3.36,162.03,162.02,3.66]
[1752456830442,3.36,162.05,162.02,3.66]
[1752456830636,3.36,162.05,162.04,3.66]
[1752456830942,182.214684,162.11,162.04,3.66]
[1752456831241,3.36,162.1,162.06,3.66]
[1752456832140,6.1667,162.09,162.06,9.8277]
[1752456832443,3.36,162.08,162.07,3.66]
[1752456833339,9.527,162.08,162.05,12.842684]
[1752456833641,3.36,162.07,162.06,3.66]
[1752456834638,3.36,162.15,162.08,3.66]
[1752456834843,3.36,162.15,162.08,6.674684]
[1752456835144,6.1661,162.11,162.09,3.66]
[1752456835338,3.36,162.1,162.09,3.66]
[1752456835535,539.49171383,162.17,162.09,3.66]
[1752456835744,6.1657,162.12,162.09,9.8266]
[1752456835936,3.36,162.11,162.1,6.674684]
[1752456836238,3.36,162.16,162.1,6.674684]
[1752456836439,3.36,162.16,162.1,12.840684]
[1752456836639,3.36,162.16,162.11,3.66]
[1752456837140,6.1649,162.14,162.11,3.66]
[1752456837347,3.36,162.13,162.11,3.66]
[1752456837641,6.1649,162.14,162.13,3.66]
[1752456837642,3.36,162.14,162.13,3.66]
[1752456837943,533.26,162.17,162.12,6.67123029]
[1752456837944,3.36,162.13,162.12,6.67123029]
[1752456838445,3.36,162.13,162.1,6.67123029]
[1752456838844,3.36,162.16,162.11,3.66]
[1752456839240,3.36,162.16,162.12,3.66]
[1752456839551,3.36,162.14,162.13,3.66]
[1752456840045,3.36,162.18,162.13,3.66]
[1752456840246,3.01123029,162.17,162.11,3.48]
[1752456840450,3.59,162.14,162.08,3.48]
[1752456840943,6.1669,162.09,162.07,3.01123029]
[1752456841144,3.59,162.08,162.07,6.49123029]
[1752456841341,180.19344458,162.19,162.0,3.01123029]
[1752456841342,3.01123029,162.13,162.05,3.01123029]
[1752456841534,3.59,162.07,162.06,3.48]
[1752456842246,3.59,162.08,162.07,3.48]
[1752456842448,3.01123029,162.13,162.07,3.48]
[1752456842636,8.16930083,162.16,162.08,3.48]
[1752456842841,3.59,162.09,162.08,3.48]
[1752456843045,3.59,162.09,162.07,3.01123029]
[1752456843046,3.59,162.09,162.06,3.01326246]
[1752456843242,3.59,162.13,162.07,3.48]
[1752456843437,3.59,162.13,162.08,6.1668]
[1752456843647,3.59,162.13,162.09,3.48]
[1752456844039,3.59,162.1,162.09,3.48]
[1752456844550,3.59,162.1,162.07,3.48]
[1752456844943,3.59,162.09,162.07,3.48]
[1752456845141,3.01326246,162.14,162.07,3.48]
[1752456845442,6.1693,162.02,162.01,3.01326246]
[1752456845641,6.1693,162.02,161.99,3.01326246]
[1752456845946,3.59,162.07,162.0,3.48]
[1752456846345,3.59,162.07,162.01,6.49326246]
[1752456846545,6.1685,162.05,162.01,3.01326246]
[1752456846747,3.59,162.04,162.03,3.48]
[1752456847342,6.1679,162.06,162.03,3.48]
[1752456847546,3.59,162.1,162.04,3.48]
[1752456847745,3.59,162.09,162.05,3.48]
[1752456847943,3.59,162.08,162.06,5.02531726]
[1752456848142,3.59,162.1,162.06,5.02531726]
[1752456848348,3.59,162.1,162.09,3.48]
[1752456850149,9.7562,162.1,162.09,3.48]
[1752456850551,3.59,162.1,162.09,3.48]
[1752456850740,3.59,162.15,162.09,3.48]
[1752456851744,3.59,162.15,162.09,9.6464]
[1752456852046,3.59,162.15,162.1,5.02531726]
[1752456852245,3.59,162.15,162.11,3.48]
[1752456852550,5.15807054,162.18,162.12,3.48]
[1752456852744,3.59,162.17,162.13,3.48]
[1752456852940,3.59,162.19,162.13,3.48]
[1752456853343,3.59,162.14,162.13,3.48]
[1752456853748,6.1648,162.14,162.11,8.50531726]
[1752456854151,3.59,162.13,162.11,8.50531726]
[1752456854346,3.59,162.13,162.12,3.48]
[1752456854548,3.59,162.13,162.11,5.02531726]
[1752456854747,3.59,162.13,162.11,8.50531726]
[1752456855050,3.59,162.13,162.11,11.19101726]
[1752456855248,3.59,162.13,162.12,3.48]
[1752456855449,9.7544,162.15,162.12,3.48]
[1752456855651,3.59,162.14,162.13,3.48]
[1752456855848,5.15807054,162.19,162.13,3.48]
[1752456855849,3.59,162.18,162.13,3.48]
[1752456856042,3.59,162.16,162.15,3.48]
[1752456856950,3.59,162.15,162.14,3.48]
[1752456857252,5.15807054,162.18,162.13,3.48]
[1752456857451,6.1643,162.16,162.13,3.48]
[1752456857650,3.59,162.17,162.13,8.50531726]
[1752456857855,3.59,162.17,162.14,3.48]
[1752456858150,3.59,162.16,162.14,3.48]
[1752456858353,3.59,162.16,162.13,5.02531726]
[1752456858354,9.754,162.16,162.15,3.48]
[1752456859553,3.59,162.15,162.14,3.48]
[1752456859751,5.15807054,162.19,162.12,3.48]
[1752456859949,3.59,162.18,162.1,8.50531726]
[1752456860150,5.15807054,162.18,162.1,8.50531726]
[1752456860347,3.59,162.17,162.1,3.48]
[1752456860849,6.1656,162.12,162.1,3.48]
[1752456861049,10.1833878,162.18,162.1,3.48]
[1752456861257,3.59,162.16,162.1,3.48]
[1752456861557,6.165,162.14,162.11,3.48]
[1752456861757,9.755,162.14,162.11,3.48]
[1752456862455,9.755,162.14,162.12,3.48]
[1752456862858,3.59,162.14,162.11,3.48]
[1752456863058,3.59,162.17,162.09,3.48]
[1752456863258,3.59,162.17,162.09,8.50531726]
[1752456863456,5.15807054,162.17,162.09,8.50531726]
[1752456863758,3.59,162.11,162.1,3.48]
[1752456863967,3.59,162.11,162.07,5.02531726]
[1752456864150,3.59,162.1,162.09,3.48]
[1752456864663,3.59,162.1,162.07,5.02531726]
[1752456864861,3.59,162.09,162.08,3.48]
[1752456865259,3.59,162.11,162.08,3.48]
[1752456865454,3.59,162.11,162.09,3.48]
[1752456866062,3.59,162.15,162.1,3.48]
[1752456866354,3.59,162.15,162.11,3.48]
[1752456866552,9.7553,162.13,162.09,5.02531726]
[1752456866759,3.59,162.14,162.12,3.48]
[1752456867158,3.59,162.14,162.13,3.48]
[1752456867460,3.59,162.17,162.11,5.02531726]
[1752456867663,3.59,162.17,162.13,3.48]
[1752456868362,6.1646,162.15,162.13,3.48]
[1752456868659,9.7546,162.15,162.13,3.48]
[1752456868858,9.7546,162.15,162.12,6.1654]
[1752456869048,9.7546,162.15,162.14,3.48]
[1752456870959,146.655909,162.2,162.11,5.02531726]
[1752456870960,6.164,162.16,162.13,6.165]
[1752456871259,9.764,162.16,162.15,3.42]
[1752456871654,3.6,162.15,162.14,3.42]
[1752456872064,3.6,162.15,162.14,9.5847]
[1752456872361,3.6,162.15,162.14,3.42]
[1752456873659,9.7643,162.15,162.14,3.42]
[1752456874466,3.6,162.16,162.1,6.43097424]
[1752456874659,3.6,162.16,162.11,3.42]
[1752456875365,3.6,162.16,162.12,3.42]
[1752456876360,3.6,162.16,162.11,3.42]
[1752456876867,6.1652,162.13,162.11,3.42]
[1752456877065,3.6,162.12,162.11,3.42]
[1752456879168,9.7655,162.12,162.11,3.42]
[1752456879563,3.6,162.12,162.11,3.42]
[1752456879764,3.6,162.13,162.11,3.42]
[1752456880165,3.6,162.13,162.11,6.1659]
[1752456880367,5.15807054,162.17,162.12,3.42]
[1752456880566,3.6,162.14,162.13,3.42]
[1752456881269,9.7647,162.15,162.14,3.42]
[1752456881469,154.82495378,162.2,162.13,6.1651]
[1752456881667,3.6,162.16,162.13,3.42]
[1752456881865,3.6,162.19,162.13,3.42]
[1752456882871,6.1642,162.16,162.13,3.42]
[1752456883068,9.7642,162.16,162.13,3.42]
[1752456883570,6.1642,162.16,162.14,3.42]
[1752456883766,9.7643,162.15,162.14,3.42]
[1752456883971,3.6,162.14,162.13,3.42]
[1752456884368,8.16904478,162.19,162.12,3.01097424]
[1752456884572,6.61097424,162.17,162.1,6.43097424]
[1752456884767,6.1657,162.12,162.1,6.43097424]
[1752456884967,3.6,162.11,162.1,6.43097424]
[1752456885163,3.6,162.16,162.1,3.01097424]
[1752456885365,3.6,162.13,162.12,3.42]
[1752456885567,3.6,162.15,162.12,3.42]
[1752456885770,3.6,162.14,162.13,3.42]
[1752456886368,9.7636,162.17,162.14,6.1645]
[1752456886567,3.6,162.16,162.15,3.42]
[1752456887063,9.7643,162.16,162.15,3.42]
[1752456888176,151.81397954,162.2,162.15,3.42]
[1752456888372,3.6,162.18,162.17,3.42]
[1752456888573,8.75807054,162.23,162.17,3.42]
[1752456888774,6.1624,162.21,162.2,3.42]
[1752456889277,9.7624,162.21,162.2,3.42]
[1752456889576,5.15807054,162.25,162.2,3.42]
[1752456889781,3.6,162.22,162.21,3.42]
[1752456890273,9.7617,162.22,162.21,3.42]
[1752456892480,3.6,162.22,162.21,3.42]
[1752456892680,9.7614,162.23,162.21,6.42846729]
[1752456892879,9.7614,162.23,162.22,3.42]
[1752456893377,3.6,162.24,162.22,3.42]
[1752456893583,3.6,162.25,162.17,3.42]
[1752456893784,3.6,162.23,162.17,3.42]
[1752456893989,3.6,162.23,162.16,3.00846729]
[1752456894185,3.6,162.21,162.14,3.42]
[1752456894479,3.6,162.16,162.15,3.42]
[1752456895276,3.6,162.18,162.15,3.42]
[1752456895483,3.6,162.21,162.14,3.42]
[1752456897186,6.1638,162.17,162.13,9.17346729]
[1752456897486,3.6,162.16,162.15,3.42]
[1752456897984,9.7633,162.18,162.15,12.59256729]
[1752456898286,9.7633,162.18,162.17,3.42]
[1752456900886,3.48,162.21,162.18,3.66]
[1752456901080,3.48,162.2,162.17,3.00846729]
[1752456901276,3.48,162.19,162.18,3.66]
[1752456901486,3.48,162.19,162.08,3.00950352]
[1752456901679,3.48,162.19,162.15,3.66]
[1752456902084,3.48,162.21,162.15,3.66]
[1752456902280,3.48,162.19,162.17,3.66]
[1752456902482,3.48,162.19,162.18,3.66]
[1752456903779,3.48,162.21,162.19,3.66]
[1752456903984,5.17140446,162.22,162.2,3.00950352]
[1752456904189,8.65140446,162.22,162.21,3.66]
[1752456905889,3.48,162.22,162.21,3.66]
[1752456906391,3.48,162.22,162.19,3.66]
[1752456906586,3.48,162.2,162.19,3.66]
[1752456908585,9.6424,162.2,162.19,3.66]
[1752456908786,3.48,162.2,162.17,3.66]
[1752456908987,3.48,162.19,162.18,3.66]
[1752456909689,9.6428,162.19,162.18,3.66]
[1752456909892,3.48,162.2,162.19,3.66]
[1752456910387,5.17140446,162.26,162.17,3.00926947]
[1752456910692,5.17140446,162.26,162.2,3.66]
[1752456910893,3.48,162.22,162.21,3.66]
[1752456911392,9.6412,162.24,162.22,3.66]
[1752456911589,3.48,162.24,162.23,3.66]
[1752456911789,3.48,162.27,162.22,3.66]
[1752456911982,6.1609,162.25,162.22,9.8216]
[1752456912187,9.6409,162.25,162.24,3.66]
[1752456912488,6.1609,162.25,162.24,3.66]
[1752456912689,6.1602,162.26,162.21,3.00926947]
[1752456912887,537.89140446,162.3,162.24,3.66]
[1752456913086,537.89140446,162.3,162.25,3.66]
[1752456913286,6.1602,162.26,162.25,3.66]
[1752456913487,537.89140446,162.3,162.25,3.66]
[1752456913693,537.89140446,162.3,162.25,6.66926947]
[1752456913694,3.48,162.29,162.25,6.66926947]
[1752456913890,6.1596,162.28,162.26,3.66]
[1752456914092,3.48,162.29,162.26,3.66]
[1752456914293,5.17140446,162.31,162.26,3.66]
[1752456914496,3.48,162.3,162.26,6.1599]
[1752456914794,5.17140446,162.32,162.27,3.00926947]
[1752456914994,6.1589,162.3,162.28,3.66]
[1752456915385,3.48,162.31,162.28,3.66]
[1752456915585,3.48,162.34,162.3,3.66]
[1752456915791,5.17140446,162.34,162.29,3.00926947]
[1752456915986,3.48,162.32,162.31,3.66]
[1752456916194,3.48,162.34,162.32,3.66]
[1752456916500,182.48496022,162.37,162.3,3.66]
[1752456916501,8.65140446,162.36,162.3,3.66]
[1752456916692,3.48,162.35,162.31,3.00496022]
[1752456916995,3.48,162.36,162.29,6.66496022]
[1752456917189,187.65636468,162.37,162.29,3.66]
[1752456917190,9.6387,162.3,162.29,3.66]
[1752456917387,3.48,162.3,162.27,3.00496022]
[1752456917590,3.48,162.34,162.27,6.66496022]
[1752456917992,3.00496022,162.31,162.25,3.66]
[1752456918194,3.48,162.3,162.25,3.66]
[1752456918695,3.48,162.28,162.23,3.66]
[1752456919196,6.1604,162.26,162.23,3.66]
[1752456920397,9.64,162.27,162.23,3.66]
[1752456920593,3.48,162.29,162.24,5.0131664]
[1752456920793,3.48,162.29,162.25,3.66]
[1752456920794,6.1595,162.28,162.25,3.66]
[1752456920986,3.48,162.29,162.25,3.66]
[1752456921497,6.1597,162.28,162.25,3.66]
[1752456922292,9.639,162.29,162.25,3.66]
[1752456922597,5.0131664,162.33,162.25,3.66]
[1752456922799,3.48,162.32,162.25,3.66]
[1752456922999,6.1599,162.27,162.26,3.66]
[1752456923397,3.48,162.3,162.24,3.66]
[1752456923594,3.48,162.3,162.22,3.66]
[1752456923595,5.0131664,162.29,162.22,3.66]
[1752456923802,3.48,162.28,162.22,3.66]
[1752456924398,3.48,162.23,162.22,3.66]
[1752456925400,3.48,162.25,162.22,3.66]
[1752456925590,3.48,162.24,162.22,3.66]
[1752456926095,3.48,162.24,162.21,6.1621]
[1752456926096,9.6411,162.24,162.23,3.66]
[1752456926296,3.48,162.26,162.23,6.1612]
[1752456926505,3.48,162.27,162.25,3.66]
[1752456926696,9.64,162.27,162.26,3.66]
[1752456927302,3.48,162.27,162.26,3.66]
[1752456928003,9.6398,162.27,162.26,3.66]
[1752456928598,3.48,162.27,162.26,3.66]
[1752456929704,9.6396,162.28,162.26,3.66]
[1752456929906,3.48,162.28,162.26,3.66]
[1752456930107,3.48,162.31,162.26,3.66]
[1752456930500,3.48,162.31,162.24,5.0131664]
[1752456930806,3.36,162.28,162.27,3.43]
[1752456931203,3.36,162.26,162.21,5.0131664]
[1752456931508,3.36,162.26,162.22,3.43]
[1752456931704,3.36,162.28,162.26,3.43]
[1752456931906,5.17140446,162.33,162.26,3.43]
[1752456931907,3.36,162.33,162.26,3.43]
[1752456932309,3.36,162.27,162.26,3.43]
[1752456933809,3.36,162.26,162.25,3.43]
[1752456934206,6.1598,162.27,162.25,3.43]
[1752456934407,9.5198,162.27,162.26,3.43]
[1752456935306,3.36,162.27,162.26,3.43]
[1752456935700,6.1594,162.28,162.25,6.1604]
[1752456935910,9.5194,162.28,162.27,3.43]
[1752456936311,3.36,162.31,162.26,3.43]
[1752456936611,5.17140446,162.35,162.26,3.43]
[1752456936804,5.17140446,162.35,162.25,5.0131664]
[1752456936805,3.36,162.29,162.28,3.43]
[1752456937212,9.5189,162.3,162.29,3.43]
[1752456937707,184.5931664,162.36,162.2,5.0131664]
[1752456937708,189.76457086,162.36,162.3,3.43]
[1752456937909,5.17140446,162.36,162.3,3.43]
[1752456938110,9.5174,162.34,162.3,9.5883]
[1752456938406,3.36,162.36,162.31,3.43]
[1752456938803,3.36,162.35,162.33,3.43]
[1752456939015,3.36,162.35,162.34,3.43]
[1752456939305,3.36,162.37,162.33,3.43]
[1752456939506,3.36,162.39,162.33,3.43]
[1752456940007,9.5166,162.36,162.34,3.43]
[1752456940605,9.5166,162.36,162.35,3.43]
[1752456940909,9.5174,162.34,162.33,3.43]
[1752456942808,6.1578,162.33,162.3,5.00646148]
[1752456943014,6.1578,162.33,162.25,532.3]
[1752456943015,3.36,162.32,162.31,3.43]
[1752456943613,3.36,162.37,162.3,3.43]
[1752456944411,9.5178,162.33,162.3,3.43]
[1752456945309,9.5173,162.34,162.3,3.43]
[1752456945604,9.5173,162.34,162.31,3.43]
[1752456945809,3.36,162.34,162.31,3.43]
[1752456946214,3.36,162.34,162.31,6.1579]
[1752456946414,3.36,162.34,162.32,3.43]
[1752456946715,3.36,162.34,162.33,3.43]
[1752456947012,3.36,162.35,162.33,6.1575]
[1752456947213,3.36,162.35,162.34,3.43]
[1752456948717,6.1565,162.36,162.33,6.1574]
[1752456949022,9.5165,162.36,162.35,3.43]
[1752456949313,3.36,162.36,162.35,3.43]
[1752456949516,3.36,162.4,162.35,3.43]
[1752456949716,3.36,162.4,162.33,3.43]
[1752456950012,3.36,162.4,162.35,3.43]
[1752456950217,3.36,162.4,162.33,3.43]
[1752456950518,3.36,162.39,162.37,3.43]
[1752456950818,3.36,162.38,162.37,3.43]
[1752456951214,3.36,162.41,162.38,3.43]
[1752456952022,3.36,162.41,162.35,3.43]
[1752456952721,3.36,162.41,162.34,5.00620807]
[1752456952722,3.36,162.39,162.31,3.43]
[1752456953117,5.00504365,162.4,162.31,3.43]
[1752456953322,3.36,162.39,162.33,5.00601946]
[1752456953523,3.36,162.4,162.34,3.43]
[1752456954025,3.36,162.4,162.37,3.43]
[1752456954424,3.36,162.38,162.37,3.43]
[1752456955721,9.5156,162.38,162.35,6.1566]
[1752456955924,3.36,162.37,162.36,3.43]
[1752456956517,3.36,162.36,162.34,3.43]
[1752456956820,3.36,162.35,162.34,3.43]
[1752456957122,3.36,162.34,162.33,3.43]
[1752456957818,9.5165,162.36,162.33,9.5875]
[1752456958017,3.36,162.35,162.34,3.43]
[1752456960227,3.48,162.37,162.34,6.1571]
[1752456960526,3.48,162.37,162.36,3.66]
[1752456960719,3.48,162.39,162.36,3.66]
[1752456960920,3.48,162.38,162.37,3.66]
[1752456961225,6.1549,162.4,162.33,5.00601946]
[1752456961530,3.48,162.41,162.36,3.66]
[1752456961716,3.48,162.41,162.37,3.66]
[1752456961919,6.1549,162.4,162.37,9.8159]
[1752456962127,3.48,162.39,162.37,3.66]
[1752456962328,3.48,162.38,162.37,3.66]
[1752456963827,3.48,162.38,162.37,9.816]
[1752456965024,3.48,162.41,162.39,3.66]
[1752456965227,3.48,162.43,162.39,3.00262724]
[1752456965422,8.65140446,162.44,162.4,3.66]
[1752456965621,3.48,162.43,162.4,3.66]
[1752456965926,3.48,162.42,162.41,3.66]
[1752456966123,5.17140446,162.45,162.39,3.00262724]
[1752456966124,6.1534,162.44,162.42,3.66]
[1752456966326,3.48,162.44,162.4,3.00084079]
[1752456966531,3.48,162.43,162.4,3.00084079]
[1752456966827,3.48,162.43,162.4,9.15554079]
[1752456967028,3.48,162.43,162.42,3.66]
[1752456967423,3.48,162.43,162.39,3.66]
[1752456968026,3.48,162.43,162.4,3.66]
[1752456968222,3.48,162.43,162.38,3.00084079]
[1752456968421,3.48,162.43,162.39,3.66]
[1752456968630,6.1542,162.42,162.39,3.66]
[1752456968827,3.48,162.43,162.39,3.66]
[1752456968828,3.48,162.44,162.39,3.66]
[1752456969030,3.48,162.43,162.39,3.66]
[1752456969229,9.6338,162.43,162.41,3.66]
[1752456969633,6.1538,162.43,162.41,3.66]
[1752456969833,3.48,162.42,162.41,3.66]
[1752456970225,9.6341,162.42,162.41,3.66]
[1752456970422,3.00084079,162.45,162.39,3.66]
[1752456970628,3.48,162.44,162.39,3.66]
[1752456970930,3.48,162.4,162.39,3.66]
[1752456971130,3.48,162.4,162.38,3.00084079]
[1752456971430,3.48,162.39,162.38,3.66]
[1752456971931,3.48,162.38,162.37,3.66]
[1752456973132,3.48,162.4,162.37,3.66]
[1752456973331,3.48,162.39,162.38,3.66]